fUST/lending_fUST_20241121
["ID","MTS","AMOUNT","RATE_DAILY","PERIOD"]
[342848472,1732180242260,-212.5677706,0.00022466,2]
[342848473,1732180242268,-500.0,0.00022473,2]
[342848474,1732180242277,-500.0,0.00022473,2]
[342848475,1732180242286,-500.0,0.00022473,2]
[342848476,1732180242295,-515.21924147,0.00022473,2]
[342848477,1732180242304,-304.7,0.00022577,3]
[342848478,1732180242313,-304.68,0.00022577,3]
[342848479,1732180242322,-355.48,0.00022577,3]
[342848480,1732180242332,-299.336699,0.000227,6]
[342848481,1732180242341,-1000.0,0.00022721,2]
[342848482,1732180242350,-500.0,0.00022739,2]
[342848483,1732180242359,-500.0,0.00022739,2]
[342848484,1732180242368,-513.86671143,0.00022739,2]
[342848485,1732180242377,-500.0,0.00022739,2]
[342848486,1732180242386,-500.0,0.00022739,2]
[342848487,1732180242396,-477.93387207,0.00022739,2]
[342848488,1732180242405,-500.0,0.00022739,2]
[342848489,1732180242414,-500.0,0.00022739,2]
[342848490,1732180242423,-500.0,0.00022739,2]
[342848491,1732180242433,-500.0,0.00022739,2]
[342848492,1732180242443,-500.0,0.00022739,2]
[342848493,1732180242451,-500.0,0.00022739,2]
[342848494,1732180242461,-500.0,0.00022739,2]
[342848496,1732180242470,-162.25193197,0.00022739,2]
[342848497,1732180242479,-500.0,0.00022739,2]
[342848498,1732180242489,-500.0,0.00022739,2]
[342848499,1732180242498,-500.0,0.00022739,2]
[342848500,1732180242507,-500.0,0.00022739,2]
[342848501,1732180242516,-500.0,0.00022739,2]
[342848502,1732180242525,-500.0,0.00022739,2]
[342848503,1732180242534,-500.0,0.00022739,2]
[342848504,1732180242544,-500.0,0.00022739,2]
[342848505,1732180242565,-504.77,0.00022739,2]
[342848506,1732180242575,-500.0,0.00022739,2]
[342848508,1732180242584,-500.0,0.00022739,2]
[342848509,1732180242593,-500.0,0.00022739,2]
[342848510,1732180242603,-500.0,0.00022739,2]
[342848511,1732180242612,-500.0,0.00022739,2]
[342848512,1732180242621,-500.0,0.00022739,2]
[342848514,1732180242631,-651.59,0.00022739,2]
[342848516,1732180242640,-500.0,0.00022739,2]
[342848517,1732180242650,-500.0,0.00022739,2]
[342848518,1732180242659,-500.0,0.00022739,2]
[342848519,1732180242668,-500.0,0.00022739,2]
[342848520,1732180242677,-500.0,0.00022739,2]
[342848521,1732180242688,-500.0,0.00022739,2]
[342848522,1732180242698,-500.0,0.00022739,2]
[342848523,1732180242707,-500.0,0.00022739,2]
[342848524,1732180242716,-500.0,0.00022739,2]
[342848525,1732180242725,-588.58,0.00022739,2]
[342848526,1732180242735,-500.0,0.00022739,2]
[342848527,1732180242745,-500.0,0.00022739,2]
[342848529,1732180242754,-203.05402691,0.00022739,2]
[342848531,1732180242764,-500.0,0.00022739,2]
[342848532,1732180242774,-500.0,0.00022739,2]
[342848533,1732180242783,-500.0,0.00022739,2]
[342848534,1732180242792,-500.0,0.00022739,2]
[342848535,1732180242802,-500.0,0.00022739,2]
[342848537,1732180242811,-970.97,0.00022739,2]
[342848539,1732180242820,-500.0,0.00022739,2]
[342848541,1732180242830,-500.0,0.00022739,2]
[342848543,1732180242839,-500.0,0.00022739,2]
[342848545,1732180242848,-653.61,0.00022739,2]
[342848546,1732180242858,-390.09544049,0.00022739,2]
[342848547,1732180242867,-500.0,0.00022739,2]
[342848548,1732180242877,-500.0,0.00022739,2]
[342848549,1732180242886,-500.0,0.00022739,2]
[342848550,1732180242895,-500.0,0.00022739,2]
[342848551,1732180242904,-996.39,0.00022739,2]
[342848552,1732180242913,-500.0,0.00022739,2]
[342848553,1732180242923,-870.85,0.00022739,2]
[342848554,1732180242932,-500.0,0.00022739,2]
[342848555,1732180242944,-557.72884195,0.00022739,2]
[342848556,1732180242953,-500.0,0.00022739,2]
[342848557,1732180242963,-500.0,0.00022739,2]
[342848558,1732180242972,-500.0,0.00022739,2]
[342848560,1732180242982,-591.08020903,0.00022739,2]
[342848562,1732180242991,-598.91,0.00022739,2]
[342848564,1732180243000,-500.0,0.00022739,2]
[342848566,1732180243009,-1560.77,0.00022739,2]
[342848568,1732180243019,-500.0,0.00022739,2]
[342848570,1732180243030,-382.91477633,0.00022739,2]
[342848572,1732180243039,-500.0,0.00022739,2]
[342848574,1732180243050,-500.0,0.00022739,2]
[342848576,1732180243061,-500.0,0.00022739,2]
[342848578,1732180243070,-500.0,0.00022739,2]
[342848580,1732180243080,-723.15,0.00022739,2]
[342848582,1732180243089,-500.0,0.00022739,2]
[342848584,1732180243099,-500.0,0.00022739,2]
[342848586,1732180243109,-500.0,0.00022739,2]
[342848588,1732180243118,-500.0,0.00022739,2]
[342848590,1732180243130,-500.0,0.00022739,2]
[342848592,1732180243139,-500.0,0.00022739,2]
[342848594,1732180243149,-500.0,0.00022739,2]
[342848596,1732180243158,-500.0,0.00022739,2]
[342848598,1732180243168,-500.0,0.00022739,2]
[342848599,1732180243176,-500.0,0.00022739,2]
[342848601,1732180243186,-500.0,0.00022739,2]
[342848602,1732180243195,-500.0,0.00022739,2]
[342848604,1732180243204,-500.0,0.00022739,2]
[342848606,1732180243214,-500.0,0.00022739,2]
[342848608,1732180243223,-500.0,0.00022739,2]
[342848610,1732180243232,-500.0,0.00022739,2]
[342848612,1732180243242,-500.0,0.00022739,2]
[342848613,1732180243251,-500.0,0.00022739,2]
[342848614,1732180243260,-500.0,0.00022739,2]
[342848615,1732180243270,-500.0,0.00022739,2]
[342848616,1732180243279,-500.0,0.00022739,2]
[342848617,1732180243288,-159.73944609,0.00022739,2]
[342848618,1732180243297,-632.89916887,0.00022739,2]
[342848619,1732180243307,-500.0,0.00022739,2]
[342848620,1732180243316,-500.0,0.00022739,2]
[342848621,1732180243325,-1000.0,0.00022739,2]
[342848622,1732180243335,-500.0,0.00022739,2]
[342848623,1732180243344,-594.64840451,0.00022739,2]
[342848624,1732180243353,-503.74230824,0.00022739,2]
[342848626,1732180243363,-500.0,0.00022739,2]
[342848627,1732180243372,-500.0,0.00022739,2]
[342848628,1732180243381,-500.0,0.00022739,2]
[342848630,1732180243391,-500.0,0.00022739,2]
[342848631,1732180243400,-500.0,0.00022739,2]
[342848632,1732180243409,-536.12,0.00022739,2]
[342848633,1732180243418,-2362.94,0.00022739,2]
[342848634,1732180243427,-500.0,0.00022739,2]
[342848635,1732180243440,-152.61854945,0.00022739,2]
[342848636,1732180243451,-500.0,0.00022739,2]
[342848637,1732180243464,-670.84,0.00022739,2]
[342848638,1732180243476,-500.0,0.00022739,2]
[342848639,1732180243491,-500.0,0.00022739,2]
[342848640,1732180243501,-584.6,0.00022739,2]
[342848641,1732180243511,-500.0,0.00022739,2]
[342848642,1732180243520,-500.0,0.00022739,2]
[342848643,1732180243529,-525.98,0.00022739,2]
[342848644,1732180243538,-500.0,0.00022739,2]
[342848645,1732180243549,-500.0,0.00022739,2]
[342848646,1732180243559,-500.0,0.00022739,2]
[342848647,1732180243568,-500.0,0.00022739,2]
[342848648,1732180243577,-500.0,0.00022739,2]
[342848649,1732180243586,-500.0,0.00022739,2]
[342848650,1732180243595,-602.7,0.00022739,2]
[342848651,1732180243604,-500.0,0.00022739,2]
[342848652,1732180243613,-500.0,0.00022739,2]
[342848653,1732180243622,-500.0,0.00022739,2]
[342848654,1732180243631,-2252.3,0.00022739,2]
[342848655,1732180243640,-500.0,0.00022739,2]
[342848656,1732180243650,-500.0,0.00022739,2]
[342848657,1732180243659,-500.0,0.00022739,2]
[342848658,1732180243668,-501.23,0.00022739,2]
[342848659,1732180243678,-992.07,0.00022739,2]
[342848660,1732180243688,-500.0,0.00022739,2]
[342848661,1732180243698,-500.0,0.00022739,2]
[342848662,1732180243707,-783.95,0.00022739,2]
[342848663,1732180243716,-500.0,0.00022739,2]
[342848664,1732180243725,-500.0,0.00022739,2]
[342848665,1732180243735,-500.0,0.00022739,2]
[342848666,1732180243744,-500.0,0.00022739,2]
[342848667,1732180243753,-500.0,0.00022739,2]
[342848668,1732180243762,-3631.76,0.00022739,2]
[342848669,1732180243771,-1124.64,0.00022739,2]
[342848670,1732180243852,-500.0,0.00022739,2]
[342848671,1732180243861,-500.0,0.00022739,2]
[342848672,1732180243871,-500.0,0.00022739,2]
[342848673,1732180243880,-15928.13978596,0.00022739,2]
[342848674,1732180243895,-2577.70021404,0.00022739,2]
[342848675,1732180243905,-500.0,0.00022739,2]
[342848676,1732180243915,-67.39978596,0.00022739,2]
[342848677,1732180244279,-500.0,0.00021216,2]
[342848678,1732180244297,-282.75628622,0.00021216,2]
[342848679,1732180244309,-201.92871378,0.00021273,2]
[342848680,1732180244387,-298.07128622,0.00021273,2]
[342848681,1732180244397,-321.57617652,0.00021821,2]
[342848682,1732180244407,-500.0,0.00021917,2]
[342848683,1732180244417,-500.0,0.00021917,2]
[342848684,1732180244426,-500.0,0.00022191,2]
[342848685,1732180244438,-500.0,0.00022191,2]
[342848686,1732180244447,-505.37,0.00022465,2]
[342848687,1732180244456,-500.0,0.00022465,2]
[342848688,1732180244465,-432.60021404,0.00022739,2]
[342848689,1732180244474,-500.0,0.00022739,2]
[342848690,1732180244483,-797.78,0.00022739,2]
[342848691,1732180244492,-3879.56,0.00022739,2]
[342848692,1732180244502,-1759.52,0.00022739,2]
[342848693,1732180244511,-1080.23,0.00022739,2]
[342848694,1732180244520,-500.0,0.00022739,2]
[342848695,1732180244529,-500.0,0.00022739,2]
[342848696,1732180244538,-500.0,0.00022739,2]
[342848697,1732180244547,-500.0,0.00022739,2]
[342848698,1732180244556,-353.5,0.00022739,2]
[342848699,1732180244565,-4489.93,0.00022739,2]
[342848700,1732180244574,-660.79,0.00022739,2]
[342848701,1732180244584,-500.0,0.00022739,2]
[342848702,1732180244593,-500.0,0.00022739,2]
[342848703,1732180244602,-1779.57,0.00022739,2]
[342848704,1732180244611,-500.0,0.00022739,2]
[342848705,1732180244620,-500.0,0.00022739,2]
[342848706,1732180244629,-2623.17,0.00022739,2]
[342848707,1732180244638,-603.80852945,0.00022739,2]
[342848708,1732180244647,-626.01,0.00022739,2]
[342848709,1732180244656,-500.0,0.00022739,2]
[342848710,1732180244665,-593.45,0.00022739,2]
[342848711,1732180244674,-500.0,0.00022739,2]
[342848712,1732180244683,-2887.34,0.00022739,2]
[342848713,1732180244695,-500.0,0.00022739,2]
[342848714,1732180244704,-500.0,0.00022739,2]
[342848715,1732180244712,-500.0,0.00022739,2]
[342848716,1732180244722,-504.6521901,0.00022739,2]
[342848717,1732180244731,-500.0,0.00022739,2]
[342848718,1732180244740,-500.0,0.00022739,2]
[342848719,1732180244749,-500.0,0.00022739,2]
[342848720,1732180244759,-871.48,0.00022739,2]
[342848721,1732180244768,-500.0,0.00022739,2]
[342848722,1732180244777,-875.13,0.00022739,2]
[342848723,1732180244787,-500.0,0.00022739,2]
[342848724,1732180244796,-232.46582213,0.00022739,2]
[342848725,1732180244805,-652.65,0.00022739,2]
[342848726,1732180244814,-500.0,0.00022739,2]
[342848727,1732180244824,-500.0,0.00022739,2]
[342848728,1732180244833,-500.0,0.00022739,2]
[342848729,1732180244842,-500.0,0.00022739,2]
[342848730,1732180244851,-500.0,0.00022739,2]
[342848731,1732180244860,-500.0,0.00022739,2]
[342848732,1732180244870,-637.69,0.00022739,2]
[342848733,1732180244879,-663.01,0.00022739,2]
[342848734,1732180244888,-564.98,0.00022739,2]
[342848735,1732180244897,-500.0,0.00022739,2]
[342848736,1732180244907,-500.0,0.00022739,2]
[342848737,1732180244917,-500.0,0.00022739,2]
[342848738,1732180244926,-500.0,0.00022739,2]
[342848739,1732180244937,-683.23,0.00022739,2]
[342848740,1732180244954,-500.0,0.00022739,2]
[342848741,1732180244964,-500.0,0.00022739,2]
[342848742,1732180244973,-500.0,0.00022739,2]
[342848743,1732180244983,-500.0,0.00022739,2]
[342848744,1732180244993,-342.93578154,0.00022739,2]
[342848745,1732180245202,-157.06421846,0.00022739,2]
[342848746,1732180245211,-151.0,0.000228,5]
[342848747,1732180245221,-500.0,0.00022822,2]
[342848748,1732180245230,-330.0,0.00022913,2]
[342848749,1732180245239,-13750.08905853,0.00022913,2]
[342848750,1732180245252,-19937.26979472,0.00022913,2]
[342848751,1732180245263,-40607.9983756,0.00022913,2]
[342848752,1732180245279,-500.0,0.00021917,2]
[342848753,1732180245288,-108387.23476913,0.00022913,2]
[342848754,1732180245297,-631.81302016,0.00022973,2]
[342848755,1732180245306,-500.0,0.00023013,2]
[342848756,1732180245316,-500.0,0.00023013,2]
[342848757,1732180245325,-500.0,0.00023013,2]
[342848758,1732180245334,-420.24,0.00023013,2]
[342848759,1732180245344,-500.0,0.00023013,2]
[342848760,1732180245352,-500.0,0.00023013,2]
[342848761,1732180245362,-500.0,0.00023013,2]
[342848762,1732180245371,-500.0,0.00023013,2]
[342848763,1732180245381,-500.0,0.00023013,2]
[342848764,1732180245392,-500.0,0.00023013,2]
[342848765,1732180245401,-500.0,0.00023013,2]
[342848766,1732180245410,-500.0,0.00023013,2]
[342848767,1732180245420,-500.0,0.00023013,2]
[342848768,1732180245429,-500.0,0.00023013,2]
[342848769,1732180245439,-500.0,0.00023013,2]
[342848770,1732180245449,-500.0,0.00023013,2]
[342848771,1732180245458,-500.0,0.00023013,2]
[342848772,1732180245467,-500.0,0.00023013,2]
[342848777,1732180245476,-504.77,0.00023013,2]
[342848779,1732180245558,-500.0,0.00023013,2]
[342848781,1732180245568,-500.0,0.00023013,2]
[342848783,1732180245577,-500.0,0.00023013,2]
[342848785,1732180245587,-500.0,0.00023013,2]
[342848786,1732180245596,-500.0,0.00023013,2]
[342848789,1732180245606,-500.0,0.00023013,2]
[342848790,1732180245616,-651.59,0.00023013,2]
[342848791,1732180245626,-500.0,0.00023013,2]
[342848792,1732180245635,-292.51881222,0.00023013,2]
[342848804,1732180246056,-362.89546986,0.00021917,2]
[342848805,1732180246065,-7355.57792178,0.00022073,7]
[342848806,1732180246077,-500.0,0.00022191,2]
[342848807,1732180246087,-500.0,0.00022465,2]
[342848808,1732180246098,-500.0,0.00022739,2]
[342848809,1732180246108,-207.48118778,0.00023013,2]
[342848810,1732180246117,-571.85074108,0.00023013,2]
[342848811,1732180246127,-500.0,0.00023013,2]
[342848812,1732180246138,-500.0,0.00023013,2]
[342848813,1732180246147,-500.0,0.00023013,2]
[342848814,1732180246156,-500.0,0.00023013,2]
[342848815,1732180246166,-224.97048165,0.00023013,2]
[342848816,1732180246175,-500.0,0.00023013,2]
[342848817,1732180246184,-588.58,0.00023013,2]
[342848818,1732180246194,-500.0,0.00023013,2]
[342848819,1732180246204,-500.0,0.00023013,2]
[342848820,1732180246213,-500.0,0.00023013,2]
[342848821,1732180246223,-500.0,0.00023013,2]
[342848822,1732180246232,-500.0,0.00023013,2]
[342848823,1732180246242,-500.0,0.00023013,2]
[342848824,1732180246251,-500.0,0.00023013,2]
[342848825,1732180246261,-970.97,0.00023013,2]
[342848826,1732180246270,-500.0,0.00023013,2]
[342848827,1732180246279,-500.0,0.00023013,2]
[342848828,1732180246289,-500.0,0.00023013,2]
[342848829,1732180246298,-653.61,0.00023013,2]
[342848830,1732180246308,-500.0,0.00023013,2]
[342848831,1732180246317,-500.0,0.00023013,2]
[342848832,1732180246326,-407.37890685,0.00023013,2]
[342848833,1732180246335,-500.0,0.00023013,2]
[342848834,1732180246344,-996.39,0.00023013,2]
[342848835,1732180246353,-500.0,0.00023013,2]
[342848836,1732180246362,-870.85,0.00023013,2]
[342848837,1732180246371,-500.0,0.00023013,2]
[342848838,1732180246380,-500.0,0.00023013,2]
[342848839,1732180246389,-500.0,0.00023013,2]
[342848840,1732180246399,-500.0,0.00023013,2]
[342848841,1732180246408,-598.91,0.00023013,2]
[342848842,1732180246418,-500.0,0.00023013,2]
[342848843,1732180246427,-1560.77,0.00023013,2]
[342848844,1732180246437,-500.0,0.00023013,2]
[342848845,1732180246446,-500.0,0.00023013,2]
[342848846,1732180246456,-500.0,0.00023013,2]
[342848847,1732180246466,-500.0,0.00023013,2]
[342848848,1732180246475,-500.0,0.00023013,2]
[342848849,1732180246485,-723.15,0.00023013,2]
[342848850,1732180246494,-500.0,0.00023013,2]
[342848851,1732180246504,-500.0,0.00023013,2]
[342848852,1732180246514,-480.3382051,0.00023013,2]
[342848853,1732180246523,-500.0,0.00023013,2]
[342848854,1732180246532,-500.0,0.00023013,2]
[342848855,1732180246542,-500.0,0.00023013,2]
[342848856,1732180246551,-303.07920514,0.00023013,2]
[342848857,1732180246562,-393.38876944,0.00023013,2]
[342848858,1732180246573,-500.0,0.00023013,2]
[342848859,1732180246583,-500.0,0.00023013,2]
[342848860,1732180246593,-500.0,0.00023013,2]
[342848861,1732180246604,-500.0,0.00023013,2]
[342848862,1732180246613,-500.0,0.00023013,2]
[342848863,1732180246622,-500.0,0.00023013,2]
[342848864,1732180246631,-200.05214552,0.00023013,2]
[342848865,1732180246641,-500.0,0.00023013,2]
[342848866,1732180246650,-500.0,0.00023013,2]
[342848867,1732180246660,-500.0,0.00023013,2]
[342848868,1732180246669,-500.0,0.00023013,2]
[342848869,1732180246678,-615.92804677,0.00023013,2]
[342848870,1732180246690,-500.0,0.00023013,2]
[342848871,1732180246699,-206.69866118,0.00023013,2]
[342848872,1732180246708,-500.0,0.00023013,2]
[342848873,1732180246718,-1000.0,0.00023013,2]
[342848874,1732180246727,-500.0,0.00023013,2]
[342848875,1732180246736,-500.0,0.00023013,2]
[342848876,1732180246746,-500.0,0.00023013,2]
[342848877,1732180246756,-500.0,0.00023013,2]
[342848878,1732180246765,-506.47988755,0.00023013,2]
[342848879,1732180246775,-536.12,0.00023013,2]
[342848880,1732180246784,-2362.94,0.00023013,2]
[342848881,1732180246793,-500.0,0.00023013,2]
[342848882,1732180246802,-500.0,0.00023013,2]
[342848883,1732180246812,-670.84,0.00023013,2]
[342848884,1732180246821,-500.0,0.00023013,2]
[342848885,1732180246830,-584.6,0.00023013,2]
[342848886,1732180246840,-500.0,0.00023013,2]
[342848887,1732180246849,-500.0,0.00023013,2]
[342848888,1732180246858,-500.0,0.00023013,2]
[342848889,1732180246868,-500.0,0.00023013,2]
[342848890,1732180246877,-642.72949894,0.00023013,2]
[342848891,1732180246886,-500.0,0.00023013,2]
[342848892,1732180246895,-500.0,0.00023013,2]
[342848893,1732180246904,-500.0,0.00023013,2]
[342848894,1732180246913,-602.7,0.00023013,2]
[342848895,1732180246923,-500.0,0.00023013,2]
[342848896,1732180246932,-500.0,0.00023013,2]
[342848897,1732180246944,-227.9349188,0.00023013,2]
[342848898,1732180246953,-2252.3,0.00023013,2]
[342848899,1732180246962,-500.0,0.00023013,2]
[342848900,1732180246971,-500.0,0.00023013,2]
[342848901,1732180246981,-313.01088476,0.00023013,2]
[342848902,1732180246990,-501.23,0.00023013,2]
[342848903,1732180246999,-500.0,0.00023013,2]
[342848904,1732180247009,-500.0,0.00023013,2]
[342848905,1732180247018,-783.95,0.00023013,2]
[342848906,1732180247032,-454.59114878,0.00023013,2]
[342848907,1732180247042,-500.0,0.00023013,2]
[342848908,1732180247052,-500.0,0.00023013,2]
[342848909,1732180247061,-185.01367567,0.00023013,2]
[342848910,1732180247071,-3631.76,0.00023013,2]
[342848911,1732180247083,-1124.64,0.00023013,2]
[342848912,1732180247092,-500.0,0.00023013,2]
[342848913,1732180247101,-500.0,0.00023013,2]
[342848914,1732180247111,-500.0,0.00023013,2]
[342848915,1732180247121,-18505.84,0.00023013,2]
[342848916,1732180247131,-500.0,0.00023013,2]
[342848917,1732180247140,-300.45987557,0.00023013,2]
[342848918,1732180247150,-500.0,0.00023013,2]
[342848919,1732180247160,-797.78,0.00023013,2]
[342848920,1732180247169,-3879.56,0.00023013,2]
[342848921,1732180247179,-1759.52,0.00023013,2]
[342848922,1732180247190,-1080.23,0.00023013,2]
[342848923,1732180247200,-500.0,0.00023013,2]
[342848924,1732180247209,-500.0,0.00023013,2]
[342848925,1732180247219,-500.0,0.00023013,2]
[342848926,1732180247229,-500.0,0.00023013,2]
[342848927,1732180247239,-4489.93,0.00023013,2]
[342848928,1732180247249,-660.79,0.00023013,2]
[342848929,1732180247258,-500.0,0.00023013,2]
[342848930,1732180247267,-500.0,0.00023013,2]
[342848931,1732180247277,-1779.57,0.00023013,2]
[342848932,1732180247286,-500.0,0.00023013,2]
[342848933,1732180247296,-500.0,0.00023013,2]
[342848934,1732180247305,-2623.17,0.00023013,2]
[342848935,1732180247385,-626.01,0.00023013,2]
[342848936,1732180247395,-500.0,0.00023013,2]
[342848937,1732180247405,-593.45,0.00023013,2]
[342848938,1732180247415,-500.0,0.00023013,2]
[342848939,1732180247425,-2887.34,0.00023013,2]
[342848940,1732180247434,-500.0,0.00023013,2]
[342848941,1732180247444,-500.0,0.00023013,2]
[342848942,1732180247453,-500.0,0.00023013,2]
[342848943,1732180247462,-500.0,0.00023013,2]
[342848944,1732180247471,-500.0,0.00023013,2]
[342848945,1732180247480,-500.0,0.00023013,2]
[342848946,1732180247489,-871.48,0.00023013,2]
[342848947,1732180247499,-500.0,0.00023013,2]
[342848948,1732180247509,-875.13,0.00023013,2]
[342848949,1732180247519,-500.0,0.00023013,2]
[342848950,1732180247529,-652.65,0.00023013,2]
[342848951,1732180247540,-500.0,0.00023013,2]
[342848952,1732180247550,-500.0,0.00023013,2]
[342848953,1732180247560,-500.0,0.00023013,2]
[342848954,1732180247570,-500.0,0.00023013,2]
[342848955,1732180247579,-500.0,0.00023013,2]
[342848956,1732180247589,-500.0,0.00023013,2]
[342848957,1732180247599,-637.69,0.00023013,2]
[342848958,1732180247609,-663.01,0.00023013,2]
[342848959,1732180247618,-564.98,0.00023013,2]
[342848960,1732180247628,-500.0,0.00023013,2]
[342848961,1732180247636,-500.0,0.00023013,2]
[342848962,1732180247646,-500.0,0.00023013,2]
[342848963,1732180247656,-500.0,0.00023013,2]
[342848964,1732180247666,-683.23,0.00023013,2]
[342848965,1732180247676,-500.0,0.00023013,2]
[342848966,1732180247687,-500.0,0.00023013,2]
[342848967,1732180247697,-500.0,0.00023013,2]
[342848968,1732180247707,-500.0,0.00023013,2]
[342848969,1732180247717,-1000.0,0.00023021,2]
[342848970,1732180247725,-1000.0,0.00023021,2]
[342848971,1732180247735,-587.0,0.00023228,2]
[342848972,1732180247744,-5191.02406695,0.00023276,2]
[342848973,1732180247754,-500.0,0.00023287,2]
[342848974,1732180247764,-500.0,0.00023287,2]
[342848975,1732180247774,-500.0,0.00023287,2]
[342848976,1732180247784,-500.0,0.00023287,2]
[342848977,1732180247793,-500.0,0.00023287,2]
[342848978,1732180247803,-500.0,0.00023287,2]
[342848979,1732180247812,-500.0,0.00023287,2]
[342848980,1732180247822,-500.0,0.00023287,2]
[342848981,1732180247831,-500.0,0.00023287,2]
[342848982,1732180247840,-500.0,0.00023287,2]
[342848983,1732180247850,-500.0,0.00023287,2]
[342848984,1732180247860,-500.0,0.00023287,2]
[342848985,1732180247870,-500.0,0.00023287,2]
[342848986,1732180247879,-500.0,0.00023287,2]
[342848987,1732180247889,-500.0,0.00023287,2]
[342848988,1732180247899,-500.0,0.00023287,2]
[342848989,1732180247908,-504.77,0.00023287,2]
[342848990,1732180247918,-500.0,0.00023287,2]
[342848991,1732180247927,-500.0,0.00023287,2]
[342848992,1732180247938,-500.0,0.00023287,2]
[342848993,1732180247948,-500.0,0.00023287,2]
[342848994,1732180247957,-597.26789771,0.00023287,2]
[342848995,1732180247967,-651.59,0.00023287,2]
[342848996,1732180247976,-500.0,0.00023287,2]
[342848997,1732180247985,-500.0,0.00023287,2]
[342848998,1732180247994,-500.0,0.00023287,2]
[342848999,1732180248003,-500.0,0.00023287,2]
[342849000,1732180248013,-500.0,0.00023287,2]
[342849001,1732180248023,-500.0,0.00023287,2]
[342849002,1732180248036,-588.58,0.00023287,2]
[342849003,1732180248046,-500.0,0.00023287,2]
[342849004,1732180248056,-500.0,0.00023287,2]
[342849005,1732180248067,-500.0,0.00023287,2]
[342849006,1732180248076,-500.0,0.00023287,2]
[342849007,1732180248086,-500.0,0.00023287,2]
[342849008,1732180248095,-500.0,0.00023287,2]
[342849009,1732180248105,-500.0,0.00023287,2]
[342849010,1732180248118,-970.97,0.00023287,2]
[342849011,1732180248128,-500.0,0.00023287,2]
[342849012,1732180248139,-500.0,0.00023287,2]
[342849013,1732180248149,-500.0,0.00023287,2]
[342849014,1732180248159,-653.61,0.00023287,2]
[342849015,1732180248170,-500.0,0.00023287,2]
[342849016,1732180248181,-500.0,0.00023287,2]
[342849017,1732180248192,-500.0,0.00023287,2]
[342849018,1732180248202,-996.39,0.00023287,2]
[342849019,1732180248212,-500.0,0.00023287,2]
[342849020,1732180248222,-870.85,0.00023287,2]
[342849021,1732180248231,-500.0,0.00023287,2]
[342849022,1732180248240,-500.0,0.00023287,2]
[342849023,1732180248250,-500.0,0.00023287,2]
[342849024,1732180248259,-195.79799795,0.00023287,2]
[342849025,1732180248269,-598.91,0.00023287,2]
[342849026,1732180248278,-500.0,0.00023287,2]
[342849027,1732180248287,-1560.77,0.00023287,2]
[342849028,1732180248297,-500.0,0.00023287,2]
[342849029,1732180248307,-500.0,0.00023287,2]
[342849030,1732180248316,-500.0,0.00023287,2]
[342849031,1732180248326,-500.0,0.00023287,2]